Cogmind - Beta 10.1 @@@ ROGUE MODE // 2020.10.28 @ 18:15:00 Player: derk Result: Escaped! Performance ------------- Evolutions (9) 4500 Regions Visited (29) 5800 Robots Destroyed (460) 2300 Value Destroyed (15409) 15409 Prototype IDs (50) 1000 Alien Tech Used (0) 0 Bonus (9073) 9073 TOTAL SCORE: 38082 Bonus ------- High Alert Combat Kills 1707 Follower Combat Kills 4929 Network Hubs Disabled 400 Met Data Miner 300 Built Enhanced Grunts 300 A7 Reached Mainframe 300 Met R17 at Cetus 500 Met R17 at Research 2000 Win 3000 Friendly Fire -4363 Cogmind --------- Core Integrity 1336/1600 Matter 300/300 Energy 680/700 System Corruption 31% Temperature Cool (20) Movement Hovering (48) Location To Epsilon Eridani Parts ------- > --- POWER (2) -------- Vortex Chain Reactor > --- PROPULSION (5) --- Combat Antigrav System Combat Linear Gravjet Combat Linear Gravjet Combat Linear Gravjet Combat Linear Gravjet > --- UTILITY (15) ----- Experimental Power Amplifier Advanced Heat Sink High-capacity Storage Unit High-capacity Storage Unit Advanced Signal Interpreter Advanced Reaction Control System Improved Cloaking Device Advanced Force Field Advanced Remote Shield Improved Hacking Suite Improved Hacking Suite Advanced Hacking Suite Improved System Shield Advanced System Shield System Backup Module > --- WEAPON (3) ------- Shock Maul Plasma Lance > --- INVENTORY (20) --- Light Particle Reactor Compact Particle Reactor Improved Gyrokinetic Inverter Combat Antigrav System Antigrav Array Advanced Energy Well (800) Improved Matter Compressor (300) Advanced Weapon Cycler Experimental Transmission Jammer Quantum Rifle Nova Cannon Enhanced Nova Cannon Enhanced Nova Cannon Railgun Neutron Missile Launcher Advanced Datajack Peak State ------------ > --- POWER ------------ Vortex Chain Reactor > --- PROPULSION ------- Combat Antigrav System Combat Linear Gravjet Combat Linear Gravjet Combat Linear Gravjet Combat Linear Gravjet > --- UTILITY ---------- Improved Fusion Compressor Experimental Power Amplifier Advanced Cooling System High-capacity Storage Unit High-capacity Storage Unit Advanced Energy Well Experimental Sensor Array Experimental Transmission Jammer Advanced Force Field Improved Hacking Suite Improved Hacking Suite Improved Hacking Suite Advanced Hacking Suite Improved System Shield Advanced System Shield > --- WEAPON ----------- Enhanced Nova Cannon KE Penetrator Plasma Lance > --- INVENTORY -------- Heavy Antimatter Reactor Compact Particle Reactor Light Quantum Reactor Combat Antigrav System Combat Linear Gravjet Advanced Heat Sink Improved Matter Compressor Advanced Weapon Cycler Advanced Remote Shield Improved Remote Force Field Quantum Rifle Quantum Rifle Cooled Proton Cannon Railgun Neutron Missile Launcher Advanced Datajack Shock Maul [Rating: 188] Favorites ----------- Power Micro Fission Core Engine Ion Engine Power Core Micro Fission Core Reactor Light Quantum Reactor Propulsion Combat Airjet Treads Advanced Treads Wheel Armored Huge Wheel Hover Unit Combat Airjet Utility High-capacity Storage Unit Device Advanced Cooling System Storage High-capacity Storage Unit Processor Advanced Signal Interpreter Hackware Hacking Suite Protection Light Armor Plating Weapon Heavy Assault Rifle Energy Gun EM Pulse Gun Energy Cannon EM Pulse Cannon Ballistic Gun Heavy Assault Rifle Ballistic Cannon Flak Cannon Launcher Grenade Launcher Impact Weapon Makeshift Hammer Slashing Weapon Katana Piercing Weapon Plasma Lance Special Melee Weapon Improved Datajack Build | -11 -10 -10 -9 -9 -9 -8 -8 -8 -7 -7 -7 -7 -6 -6 -6 -6 -6 -6 -6 -6 -5 -5 -5 -4 -4 -4 -3 -2 -1 ------- Run | Scr Mat Min Mat Min Exi Min Mat Sto Fac Low Low Dat Pro Fac Was Fac Ext Cet Arc Hub Fac Was Fac Fac Was Fac Res Res Acc Slots Evolved 18 | . . . 2 . . . 2 . 2 . . . . 2 . . . . . . 2 . . 2 . . 2 2 2 Power 1 | . . . . . . . . . . . . . . . . . . . . . . . . . . . 1 . . Propulsion 3 | . . . . . . . . . 1 . . . . . . . . . . . 1 . . . . . 1 . . Utility 13 | . . . 2 . . . 2 . 1 . . . . 2 . . . . . . 1 . . 2 . . . 2 1 Weapon 1 | . . . . . . . . . . . . . . . . . . . . . . . . . . . . . 1 Parts Attached 600 | 9 12 16 26 3 5 1 33 18 41 12 6 1 6 67 1 17 8 16 6 9 39 . 40 47 5 26 68 14 48 Power 67 | 1 1 3 3 1 . . 3 1 6 1 2 . . 5 . 3 1 2 . 1 4 . 2 5 . 3 13 1 5 Engine 22 | 1 . 2 3 1 . . 3 1 5 . 1 . . 4 . 1 . . . . . . . . . . . . . Core 23 | . 1 1 . . . . . . 1 1 1 . . 1 . 1 1 1 . 1 3 . 2 3 . 1 3 . 1 Reactor 22 | . . . . . . . . . . . . . . . . 1 . 1 . . 1 . . 2 . 2 10 1 4 Propulsion 69 | 3 3 3 4 . . . 5 3 7 4 . . . 7 . 1 . . 1 . 5 . 5 7 . 4 3 . 4 Treads 25 | 2 3 3 4 . . . 5 2 6 . . . . . . . . . . . . . . . . . . . . Leg . | . . . . . . . . . . . . . . . . . . . . . . . . . . . . . . Wheel 2 | 1 . . . . . . . . 1 . . . . . . . . . . . . . . . . . . . . Hover 42 | . . . . . . . . 1 . 4 . . . 7 . 1 . . 1 . 5 . 5 7 . 4 3 . 4 Flight . | . . . . . . . . . . . . . . . . . . . . . . . . . . . . . . Utility 281 | 2 3 3 8 . 5 . 13 3 17 3 2 1 3 32 . 7 3 6 5 6 17 . 20 20 3 16 43 11 29 Device 143 | . . 1 2 . . . 1 . 2 1 . . 1 21 . 5 . 2 . 2 7 . 11 14 3 8 34 7 21 Storage 34 | 2 3 2 1 . 4 . 2 2 . . . . . . . . . 1 . 1 3 . 3 2 . 4 1 1 2 Processor 12 | . . . . . . . . . 1 . 1 . . 4 . 1 . . . . 2 . . . . . . . 3 Hackware 21 | . . . . . . . 4 . 2 . . . . . . . 2 1 4 . . . . 2 . . 4 . 2 Protection 71 | . . . 5 . 1 . 6 1 12 2 1 1 2 7 . 1 1 2 1 3 5 . 6 2 . 4 4 3 1 Artifact . | . . . . . . . . . . . . . . . . . . . . . . . . . . . . . . Weapon 183 | 3 5 7 11 2 . 1 12 11 11 4 2 . 3 23 1 6 4 8 . 2 13 . 13 15 2 3 9 2 10 Energy Gun 41 | 1 1 3 2 . . . . 2 . 1 2 . 2 1 . . . 3 . 1 2 . 8 8 . . 2 . 2 Energy Cannon 27 | . . . 1 . . . 3 1 . . . . . 2 . . . 1 . . 1 . 3 3 1 2 4 1 4 Ballistic Gun 44 | 2 2 1 5 1 . 1 4 2 3 2 . . . 8 . 2 1 2 . . 4 . . 1 1 1 . . 1 Ballistic Cannon 4 | . . . . . . . . 2 2 . . . . . . . . . . . . . . . . . . . . Launcher 28 | . 1 2 1 1 . . 4 1 3 . . . . 1 . 2 1 2 . 1 3 . 1 1 . . 2 . 1 Special Weapon . | . . . . . . . . . . . . . . . . . . . . . . . . . . . . . . Impact Weapon 16 | . . . . . . . . . . . . . 1 9 . 1 1 . . . 1 . 1 . . . 1 . 1 Slashing Weapon 7 | . . . 1 . . . . 2 3 . . . . 1 . . . . . . . . . . . . . . . Piercing Weapon 2 | . . . . . . . . . . . . . . . . . . . . . . . . . . . . 1 1 Special Melee Weapon 14 | . 1 1 1 . . . 1 1 . 1 . . . 1 1 1 1 . . . 2 . . 2 . . . . . Unidentified Prototypes 36 | . . . 1 . . . 1 2 . . . . . 2 . 3 . 3 . 1 1 . 1 4 2 . 12 1 2 Parts Lost 123 | . . 4 4 1 . . 8 4 18 . 1 . 4 14 . . . 3 . 1 17 . 6 8 . 11 2 2 15 Power 14 | . . 1 1 1 . . 1 . 3 . 1 . . 1 . . . . . . . . . 1 . 2 . . 2 Propulsion 11 | . . 1 . . . . 2 . 2 . . . . 2 . . . . . . 2 . 1 . . . . . 1 Utility 62 | . . . 1 . . . 3 2 9 . . . 2 8 . . . 3 . 1 9 . 1 4 . 7 2 2 8 Weapon 36 | . . 2 2 . . . 2 2 4 . . . 2 3 . . . . . . 6 . 4 3 . 2 . . 4 Highest Loss Streak 7 | . . 3 2 1 . . 3 1 7 . 1 . 4 3 . . . 2 . 1 4 . 5 3 . 5 1 1 5 Average Slot Usage (%) 92 | . 99 99 98 99 96 88 80 86 91 99 100 100 99 90 100 98 93 99 100 97 89 94 97 91 94 93 93 83 94 Engine 4 | . 9 10 10 10 11 11 8 9 5 . 4 7 7 5 6 3 . . . . . . . . . . . . . Core 1 | . 4 3 . . . . . . . 7 2 . . . . 2 6 4 . 6 3 5 4 3 5 . 1 . . Reactor 1 | . . . . . . . . . . . . . . . . . . 1 6 . . . . 1 . 4 7 5 4 Treads 9 | . 27 28 21 22 22 22 17 17 15 . . . . . . . . . . . . . . . . . . . . Hover 11 | . . . . . . . . . . 23 23 23 23 17 20 20 20 20 20 20 17 23 22 21 21 21 23 21 19 Device 9 | . . . 5 . . . 1 . 1 15 8 7 6 19 26 20 13 13 13 10 6 11 10 18 19 21 20 20 22 Storage 15 | . 28 27 33 33 30 22 17 23 16 7 7 7 7 6 6 6 6 6 6 7 14 11 12 10 11 13 11 8 10 Processor 2 | . . . . . . . . . . . 5 7 7 5 13 11 5 . . . 4 5 5 4 . . . . 2 Hackware 12 | . . . . . . . 11 9 13 15 15 15 15 13 13 13 23 25 26 26 23 23 22 20 21 19 18 17 21 Protection 6 | . . . 5 11 10 11 4 9 18 14 15 15 15 7 . 5 2 12 13 11 5 5 4 . 5 3 1 4 1 Energy Gun 2 | . 7 12 . . . . . 3 . 6 7 7 6 1 . . . 4 6 5 2 . 4 5 . . . . 1 Energy Cannon 1 | . . . 5 . . . 5 1 . . . . . . . . . . . . 1 . 2 . 5 3 3 . 1 Ballistic Gun 7 | . 19 3 13 21 22 22 11 5 6 3 7 7 . 4 . 8 8 6 6 6 1 . . 2 5 3 . . 1 Impact Weapon 1 | . . . . . . . . . . . . . 6 4 6 1 1 . . . 2 5 . . . . 1 4 1 Naked Turns . | . . . . . . . . . . . . . . . . . . . . . . . . . . . . . . Heaviest Build 192 | 15 57 58 85 80 126 127 190 192 168 65 67 66 71 80 58 73 73 77 78 70 94 54 99 115 112 121 143 161 157 Greatest Support 158 | 40 40 40 45 45 45 45 45 44 72 75 66 66 66 75 67 75 75 75 75 75 97 88 91 111 111 118 158 158 158 Greatest Overweight (x) 36 | . 1 1 2 1 2 2 4 8 4 . 1 . 1 1 . . . 1 1 . 1 . 1 1 1 36 . 1 . Average Overweight (x) . | . . . 1 1 1 2 3 3 2 . . . . . . . . . . . . . . . . . . . . Largest Inventory Capacity 52 | 8 18 18 24 24 40 32 52 44 40 20 12 12 12 12 12 12 12 12 12 12 12 12 20 20 20 20 20 20 20 Average Capacity 21 | 5 13 17 24 24 28 32 43 41 23 12 12 12 12 12 12 12 12 12 12 12 12 12 19 20 20 20 20 20 20 Most Carried 44 | 6 18 18 24 24 32 32 44 44 40 16 12 12 12 12 12 12 12 12 12 12 12 11 20 20 20 20 20 20 20 Average Carried 20 | 4 12 17 22 23 27 31 40 38 20 12 11 12 11 11 11 11 11 11 11 11 9 10 16 18 19 19 19 19 16 Final Capacity 44 | 8 18 18 24 24 32 32 44 40 20 12 12 12 12 12 12 12 12 12 12 12 12 12 20 20 20 20 20 20 20 Final Carried 44 | 6 18 18 24 24 32 32 44 40 16 12 12 12 12 12 12 11 12 12 12 12 10 11 20 19 20 20 20 17 17 Class Distribution -------------------- 40% | Hacker-Mutant 31% | Hauler-Mutant 15% | Scavenger-Mutant 7% | Mutant 4% | Wizard-Mutant Dominant Class ---------------- Mutant | -10/Materials Mutant | -10/Mines Hauler-Mutant | -9/Materials Hauler-Mutant | -9/Mines Hauler-Mutant | -9/Exiles Hauler-Mutant | -8/Mines Hauler-Mutant | -8/Materials Hauler-Mutant | -8/Storage Hacker-Mutant | -7/Factory Scavenger-Mutant | -7/Lower Caves Scavenger-Mutant | -7/Lower Caves Scavenger-Mutant | -7/Data Miner Scavenger-Mutant | -6/Proximity Caves Scavenger-Mutant | -6/Factory Scavenger-Mutant | -6/Waste Hacker-Mutant | -6/Factory Hacker-Mutant | -6/Extension Hacker-Mutant | -6/Cetus Scavenger-Mutant | -6/Archives Scavenger-Mutant | -6/Hub_04(d) Hacker-Mutant | -5/Factory Hacker-Mutant | -5/Waste Hacker-Mutant | -5/Factory Hacker-Mutant | -4/Factory Hacker-Mutant | -4/Waste Hacker-Mutant | -4/Factory Hacker-Mutant | -3/Research Hacker-Mutant | -2/Research Wizard-Mutant | -1/Access Resources | -11 -10 -10 -9 -9 -9 -8 -8 -8 -7 -7 -7 -7 -6 -6 -6 -6 -6 -6 -6 -6 -5 -5 -5 -4 -4 -4 -3 -2 -1 ----------- Run | Scr Mat Min Mat Min Exi Min Mat Sto Fac Low Low Dat Pro Fac Was Fac Ext Cet Arc Hub Fac Was Fac Fac Was Fac Res Res Acc Matter Collected 11458 | 302 362 266 487 85 60 238 762 479 810 268 170 . 112 1190 . 392 391 231 180 142 566 . 504 761 156 490 1027 156 871 Remotely . | . . . . . . . . . . . . . . . . . . . . . . . . . . . . . . Salvage Created 19304 | 98 479 238 895 206 . 386 1523 1599 1648 427 300 . 336 2261 . 454 559 220 471 1222 1322 . 757 541 . 784 592 299 1687 Parts 954 | 2 41 10 70 14 . 17 87 67 81 17 16 . 16 62 . 23 23 11 31 62 63 . 42 25 . 41 31 9 93 Haulers Intercepted 13 | . 1 . 1 . . . 4 1 1 . . . . 2 . 1 . . . . 1 . . . . . . . 1 Recyclers Shooed 15 | . 1 . 1 . . . 1 . 1 . . . . 1 . . 4 . . . 1 . 2 2 . 1 . . . Parts Field Recycled . | . . . . . . . . . . . . . . . . . . . . . . . . . . . . . . Retrieved Matter . | . . . . . . . . . . . . . . . . . . . . . . . . . . . . . . Parts Self-Destructed 50 | . . . . . . . . . . 17 17 . 16 . . . . . . . . . . . . . . . . Prevented 8 | . . . . . . . . . . . 1 . 7 . . . . . . . . . . . . . . . . Kills | -11 -10 -10 -9 -9 -9 -8 -8 -8 -7 -7 -7 -7 -6 -6 -6 -6 -6 -6 -6 -6 -5 -5 -5 -4 -4 -4 -3 -2 -1 ------- Run | Scr Mat Min Mat Min Exi Min Mat Sto Fac Low Low Dat Pro Fac Was Fac Ext Cet Arc Hub Fac Was Fac Fac Was Fac Res Res Acc Combat Hostiles Destroyed 329 | . 13 23 23 8 . 8 37 29 30 8 10 . 4 24 . 11 4 4 2 2 27 . 14 8 . 9 6 3 22 Melee 32 | . . . . . . . . . 12 . . . . 8 . . . . . . 1 . . . . . . 1 10 Guns 147 | . 11 6 14 4 . 6 14 8 8 8 10 . 4 9 . 11 3 1 2 1 11 . 5 3 . 3 . . 5 Cannons 53 | . . . 3 . . . 11 10 3 . . . . . . . . . . . . . 9 3 . 4 6 . 4 AOE 83 | . 2 17 5 4 . 2 11 10 7 . . . . 2 . . 1 3 . 1 14 . . 2 . . . . 2 Classes Destroyed 22 | 1 5 1 3 . . 1 2 1 1 1 . . 2 1 . . . . . . 1 . . . . 1 1 . . Worker 29 | . 2 . 3 . . 2 . 1 2 . . . . 3 . . . . . 6 1 . . 2 . 3 1 . 3 Builder 8 | . . . 1 . . . . . 2 . . . . . . . . . . 2 2 . 1 . . . . . . Tunneler 1 | . . . . . . . . . . . . . . . . . . . . . . . . . . 1 . . . Hauler 13 | . 1 . 1 . . . 4 1 1 . . . . 2 . 1 . . . . 1 . . . . . . . 1 Recycler 22 | 1 1 1 . . . 1 . 3 4 . . . . 4 . . 3 . . 1 2 . 1 . . . . . . Minesweeper 1 | . . . . . . . . . . . . . 1 . . . . . . . . . . . . . . . . Mechanic 1 | . . . . . . . . . . . . . . . . . . . . . 1 . . . . . . . . Operator 19 | . . . 2 . . . . . . . . . . 1 . . 2 . 9 2 . . . 1 . . . . 2 Drone 2 | . . . . . . . . . . . . . . 1 . . . . . . . . 1 . . . . . . Watcher 22 | . 2 . 2 . . . 2 . 3 . . . . 2 . 2 . . . . 2 . 1 . . 1 1 . 4 Swarmer 104 | . 9 5 12 4 . 4 15 5 10 3 7 . . . . 4 1 . . . 13 . 5 . . . . . 7 Grunt 78 | . 4 . 6 4 . 3 5 9 10 2 1 . 3 10 . . . 2 . . 6 . 1 3 . 5 2 . 2 Brawler 4 | . . . . . . . 2 2 . . . . . . . . . . . . . . . . . . . . . Duelist 10 | . . . . . . 1 1 2 1 2 . . . . . . . . . . 2 . 1 . . . . . . Protector 2 | . . . . . . . . 2 . . . . . . . . . . . . . . . . . . . . . Sentry 54 | . . . 5 . . . 13 7 5 1 1 . . 4 . 2 2 . 2 2 1 . 1 . . 2 2 1 3 Hunter 23 | . . . . . . . 1 2 1 . . . . 6 . . 1 1 . . 3 . . 3 . . 1 2 2 Programmer 29 | . . . . . . . . . 3 . 1 . . 4 . 1 . . . . 2 . 6 2 . 2 . . 8 Behemoth 1 | . . . . . . . . . . . . . 1 . . . . . . . . . . . . . . . . Cetus Guard 1 | . . . . . . . . . . . . . . . . . . 1 . . . . . . . . . . . Enhanced Grunt 4 | . . . . . . . . . . . . . . . . . . . . 4 . . . . . . . . . Striker 1 | . . . . . . . . . . . . . . . . . . . . . . . . . . . 1 . . Samaritan 2 | . . . . . . . . . . 2 . . . . . . . . . . . . . . . . . . . Assembled 22 | . . 18 . . . . . . . . . . . . . 4 . . . . . . . . . . . . . Savage 4 | . . . . . . . . . . . . . . . . . . . . 4 . . . . . . . . . Guerrilla 3 | . . . . . . . . . . . . . . . . . . . 1 2 . . . . . . . . . Best Kill Streak 17 | 1 3 17 6 4 . 3 5 11 7 3 3 . 3 4 . 5 3 3 3 8 10 . 6 3 . 7 2 2 5 Combat Bots Only 17 | . 3 17 6 4 . 3 5 10 6 3 3 . 3 4 . 4 2 3 2 1 9 . 3 3 . 5 2 2 5 Max Kills in Single Turn 14 | 1 2 4 3 4 . 3 3 4 3 2 1 . 1 1 . 2 2 3 2 14 4 . 1 2 . 1 1 1 1 Gunslinging 1 | . 1 . . . . . 1 1 . 1 . . . . . 1 . . . . . . . . . . . . . Exploded 4 | . 1 4 3 4 . 2 3 4 2 . . . . 1 . . 1 3 . 1 3 . . 2 . . . . 1 Melee 1 | . . . . . . . . . 1 . . . . 1 . . . . . . 1 . . . . . . 1 1 Uniques/NPCs Destroyed . | . . . . . . . . . . . . . . . . . . . . . . . . . . . . . . Combat | -11 -10 -10 -9 -9 -9 -8 -8 -8 -7 -7 -7 -7 -6 -6 -6 -6 -6 -6 -6 -6 -5 -5 -5 -4 -4 -4 -3 -2 -1 -------- Run | Scr Mat Min Mat Min Exi Min Mat Sto Fac Low Low Dat Pro Fac Was Fac Ext Cet Arc Hub Fac Was Fac Fac Was Fac Res Res Acc Damage Taken 29465 | . 459 566 981 181 . 75 1733 1058 4205 424 567 . 733 3201 . 415 561 666 75 455 3313 . 1638 1743 . 1539 642 1343 2892 Core 3158 | . 59 89 92 64 . . 239 63 333 44 47 . 70 382 . 66 38 50 . . 381 . 302 138 . 292 97 48 264 Absorbed by Shields 3187 | . . . 30 . . . . . 58 . . . . 77 . . . 13 . . . . 203 . . 17 483 279 2027 Core Remaining (%) 61 | 100 . 40 . . . 61 . 45 . . . . 29 . . . . . . 36 . . 31 . . 62 92 96 83 Volleys Fired 1046 | 4 49 28 67 11 . 26 98 50 60 29 25 . 25 64 . 23 30 14 30 9 75 . 71 63 . 71 41 9 74 Largest 2 | 2 2 2 2 2 . 2 2 2 2 2 2 . 2 2 . 2 2 2 2 2 2 . 2 2 . 2 1 1 2 Hottest 289 | 70 60 60 86 46 . 51 91 107 72 113 113 . 108 118 . 60 60 289 115 115 125 . 179 130 . 123 110 40 214 Shots Fired 1587 | 8 95 31 105 21 . 52 168 87 88 58 47 . 31 81 . 43 49 19 60 16 104 . 75 89 . 82 41 9 128 Gun 1172 | 8 93 22 77 20 . 52 106 41 54 58 47 . 31 69 . 43 44 15 60 15 86 . 43 65 . 51 1 . 71 Cannon 342 | . . . 23 . . . 55 42 22 . . . . 7 . . . 2 . . 6 . 32 21 . 31 40 9 52 Launcher 73 | . 2 9 5 1 . . 7 4 12 . . . . 5 . . 5 2 . 1 12 . . 3 . . . . 5 Special . | . . . . . . . . . . . . . . . . . . . . . . . . . . . . . . Kinetic 860 | 4 82 4 63 20 . 52 106 49 76 29 25 . 6 58 . 43 44 9 30 8 51 . . 12 . 51 1 . 37 Thermal 339 | 4 . . . . . . . 18 . 29 14 . 2 17 . . . 8 30 7 41 . 74 27 . . . . 68 Explosive 62 | . 2 9 5 1 . . 7 . 5 . . . . 5 . . 5 2 . 1 12 . . 3 . . . . 5 Electromagnetic 326 | . 11 18 37 . . . 55 20 7 . 8 . 23 1 . . . . . . . . 1 47 . 31 40 9 18 Robot Hit Streak 21 | 7 10 12 21 8 . 4 15 16 18 7 9 . 7 11 . 9 6 6 4 3 10 . 9 4 . 16 9 3 15 Robot Miss Streak 7 | . 3 3 3 1 . 4 4 6 5 4 4 . 2 5 . 5 2 3 4 2 5 . 4 4 . 7 5 3 5 Penetration Max 1 | . . . . . . . 1 1 1 . . . . . . . . . 1 1 1 . . 1 . 1 . . 1 Secondary Targets 17 | . 1 . 5 . . 1 2 2 . 1 1 . . . . 4 . . . . . . . . . . . . . Max Gunslinging Chain 1 | . 1 . 1 . . 1 1 1 . 1 1 . . . . 1 . . . . . . . . . . . . . Shots Hit Robots 1254 | 7 62 17 67 15 . 20 115 63 98 47 32 . 26 150 . 32 45 13 28 7 100 . 47 42 . 47 29 16 129 Core Hits 708 | 2 29 35 38 11 . 13 56 60 65 27 14 . 13 55 . 15 15 10 21 44 54 . 24 22 . 23 11 5 46 Critical Hits 43 | . 1 . . . . 1 2 . 1 1 1 . . 2 . . 3 . 9 1 11 . . 1 . . 1 2 6 Critical Kills 16 | . . . . . . . . . 1 1 . . . . . . 1 . 4 1 1 . . 1 . . . 1 5 Critical Parts Destroyed 26 | . 1 . . . . 1 2 . . . 1 . . 2 . . 2 . 5 . 10 . . . . . . 1 1 Melee Attacks 414 | . . . 1 . . . 2 1 46 2 . . 3 139 . 16 17 . . . 46 . 3 1 . . 8 29 100 Impact 214 | . . . . . . . . . . . . . 3 111 . 11 2 . . . 41 . 3 . . . 8 21 14 Slashing 73 | . . . 1 . . . . 1 46 . . . . 25 . . . . . . . . . . . . . . . Piercing 94 | . . . . . . . . . . . . . . . . . . . . . . . . . . . . 8 86 Sneak Attacks 50 | . . . . . . . 2 . 2 2 . . 1 13 . 6 17 . . . 2 . . 1 . . . . 4 Combat Hostiles . | . . . . . . . . . . . . . . . . . . . . . . . . . . . . . . Follow-up Attacks 15 | . . . . . . . . . . . . . . 4 . . . . . . . . . . . . . . 11 Damage Inflicted 47494 | 65 874 1140 1524 427 . 574 3084 2359 3831 899 732 . 726 5368 . 702 1495 1044 1100 2621 6107 . 1865 1948 . 1814 1073 669 5453 Guns 16957 | 65 750 190 611 222 . 417 1206 518 845 899 732 . 586 1147 . 558 649 223 1100 254 1805 . 756 963 . 1055 . . 1406 Cannons 7442 | . . . 481 . . . 990 689 490 . . . . 33 . . . 60 . . 151 . 1064 382 . 759 917 197 1229 Explosions 14062 | . 124 950 432 205 . 157 856 1152 1324 . . . . 445 . . 666 761 . 2367 3396 . . 596 . . . . 631 Melee 8994 | . . . . . . . . . 1172 . . . 140 3743 . 144 180 . . . 755 . 45 . . . 156 472 2187 Ramming 39 | . . . . . . . 32 . . . . . . . . . . . . . . . . 7 . . . . . Kinetic 11936 | 28 654 41 486 222 . 417 1206 713 1335 365 418 . 145 957 . 558 649 180 498 157 1036 . . 216 . 1055 . . 600 Thermal 8001 | 37 . 31 23 . . 157 102 427 . 534 248 . 48 325 . . . 103 602 265 994 . 1799 499 . . . . 1807 Explosive 9559 | . 124 919 409 205 . . 754 . 701 . . . . 321 . . 666 761 . 190 3322 . . 556 . . . . 631 Electromagnetic 8965 | . 96 149 606 . . . 990 1219 623 . 66 . 393 22 . . . . . 2009 . . 21 670 . 759 917 197 228 Impact 4634 | . . . . . . . . . . . . . 140 2769 . 144 180 . . . 755 . 45 . . . 156 193 252 Slashing 2146 | . . . . . . . . . 1172 . . . . 974 . . . . . . . . . . . . . . . Piercing 2214 | . . . . . . . . . . . . . . . . . . . . . . . . . . . . 279 1935 Highest Corruption 31 | . . 1 . . . . 1 1 6 6 6 6 6 1 7 7 . . . . 8 16 26 4 4 2 5 . 31 Average Corruption 6 | . . 1 . . . . 1 1 3 6 6 6 6 1 7 3 . . . . 6 13 20 4 2 1 3 . 22 Corruption Purged 21 | . . . . . . . . . . . . . . 2 . 8 . . . . . . . . 2 2 5 . 2 Effects 383 | . . 4 . . . . 9 2 14 24 16 1 11 1 1 21 . . . . 8 2 110 4 2 6 11 . 136 Message Errors 61 | . . 3 . . . . 4 . 4 4 4 . 2 . . 6 . . . . 2 . 13 1 . 2 1 . 15 Matter Fused 61 | . . . . . . . . . 3 5 2 1 4 . . 4 . . . . 1 . 16 2 . . 3 . 20 Heat Flow Errors 39 | . . . . . . . . . 1 1 4 . . . . 3 . . . . 1 . 15 1 2 2 2 . 7 Energy Discharges 30 | . . . . . . . 2 . 2 3 1 . . . . 2 . . . . 1 2 10 . . . 3 . 4 Parts Rejected 4 | . . . . . . . . . . . . . 1 . 1 . . . . . . . . . . . . . 2 Data Loss (minor) 33 | . . 1 . . . . 3 1 . 4 2 . 2 1 . 2 . . . . . . 7 . . 1 1 . 8 Data Loss (major) 12 | . . . . . . . . . 1 2 . . 1 . . 1 . . . . . . 5 . . . . . 2 Misfires 6 | . . . . . . . . . 1 . . . . . . . . . . . . . 1 . . . . . 4 Alerts 6 | . . . . . . . . . . . . . . . . . . . . . . . 5 . . . . . 1 Misdirections 47 | . . . . . . . . . . . . . . . . . . . . . . . 22 . . . . . 25 Targeting Errors 71 | . . . . . . . . 1 2 5 2 . 1 . . 2 . . . . 3 . 13 . . 1 1 . 40 Weapon Failures 13 | . . . . . . . . . . . 1 . . . . 1 . . . . . . 3 . . . . . 8 Overload Shots 1 | . . . . . . . . . . . . . . . . . . 1 . . . . . . . . . . . Overflow Damage 2329 | . 30 29 6 . . 28 29 19 173 . . . 92 737 . 52 97 . . 11 528 . 21 53 . 31 19 . 374 Projectiles 288 | . . . . . . . 23 . . . . . . . . . 9 . . . . . 21 10 . 31 14 . 180 Explosions 764 | . 30 29 6 . . 28 6 19 121 . . . . . . . . . . 11 388 . . 43 . . . . 83 Melee 1277 | . . . . . . . . . 52 . . . 92 737 . 52 88 . . . 140 . . . . . 5 . 111 Knockbacks 38 | . . . . . . . . 4 9 . . . 1 20 . . 2 . . . 2 . . . . . . . . Impact 23 | . . . . . . . . . . . . . 1 19 . . 1 . . . 2 . . . . . . . . Kinetic 11 | . . . . . . . . 4 7 . . . . . . . . . . . . . . . . . . . . Secondary 4 | . . . . . . . . . 2 . . . . 1 . . 1 . . . . . . . . . . . . Self-Inflicted Damage 1256 | . . 95 23 . . 30 92 46 295 . . . . . . . . . . 198 270 . . 3 . . . . 204 Shots 22 | . . 3 1 . . 1 1 1 8 . . . . . . . . . . 2 3 . . . . . . . 2 Rammed 3 | . . . . . . . 2 . . . . . . . . . . . . . . . . 1 . . . . . Targets Rammed 3 | . . . . . . . 2 . . . . . . . . . . . . . . . . 1 . . . . . Kicked . | . . . . . . . . . . . . . . . . . . . . . . . . . . . . . . Crushed . | . . . . . . . . . . . . . . . . . . . . . . . . . . . . . . Highest Temperature 581 | 27 36 20 114 6 . 9 156 269 383 175 195 . 230 171 . 296 72 270 . 12 348 . 257 165 201 581 284 . 389 Average Temperature 73 | 12 10 5 33 2 . 6 43 73 131 25 94 . 124 35 . 86 17 88 . 6 114 . 92 48 86 114 63 . 128 Received Heat Transfer 4857 | . 201 20 271 81 . . 369 297 1200 117 6 . 150 819 . . 108 72 9 102 363 . 66 201 . 205 51 90 59 Effects 12 | . . . . . . . . . 3 . . . . . . 1 . . . . 1 . . . . 3 . . 4 Shutdowns 2 | . . . . . . . . . 1 . . . . . . . . . . . . . . . . 1 . . . Energy Bleed 2 | . . . . . . . . . . . . . . . . 1 . . . . 1 . . . . . . . . Interference 4 | . . . . . . . . . . . . . . . . . . . . . . . . . . . . . 4 Short Circuit 3 | . . . . . . . . . 2 . . . . . . . . . . . . . . . . 1 . . . Damage (core) 1 | . . . . . . . . . . . . . . . . . . . . . . . . . . 1 . . . Siege Activations . | . . . . . . . . . . . . . . . . . . . . . . . . . . . . . . Robots Corrupted 11 | . . . 1 . . . 1 1 . . . . . . . . . . . 3 . . . . . 2 . 2 1 Combat Hostiles 7 | . . . 1 . . . 1 1 . . . . . . . . . . . . . . . . . 2 . 2 . Parts Fried 69 | . . . 3 . . . 4 9 2 . . . . 22 . 4 . . . 9 3 . . 3 . 5 3 . 2 Impact Corruptions 46 | . . . . . . . . . . . . . 3 26 . 2 2 . . . 11 . . . . . 1 . 1 Robots Melted 2 | . . . . . . . . . . . . . . 1 . . . . . . . . . . . . . . 1 Combat Hostiles 2 | . . . . . . . . . . . . . . 1 . . . . . . . . . . . . . . 1 Parts Melted 23 | . . . . . . . . 1 . 1 1 . . 3 . . . . 2 1 1 . 6 . . . . . 7 Heat Transferred 9716 | 111 . 50 50 . . 200 150 533 . 1200 500 . 100 433 . . . 148 703 348 1186 . 1697 568 . . . . 1739 Parts Sabotaged . | . . . . . . . . . . . . . . . . . . . . . . . . . . . . . . Parts Stolen . | . . . . . . . . . . . . . . . . . . . . . . . . . . . . . . Parts Stripped . | . . . . . . . . . . . . . . . . . . . . . . . . . . . . . . Power Chain Reactions 9 | . . 1 1 . . . 1 2 1 . . . . 1 . . . . . 1 . . . 1 . . . . . Missiles Intercepted . | . . . . . . . . . . . . . . . . . . . . . . . . . . . . . . Alert | -11 -10 -10 -9 -9 -9 -8 -8 -8 -7 -7 -7 -7 -6 -6 -6 -6 -6 -6 -6 -6 -5 -5 -5 -4 -4 -4 -3 -2 -1 ------- Run | Scr Mat Min Mat Min Exi Min Mat Sto Fac Low Low Dat Pro Fac Was Fac Ext Cet Arc Hub Fac Was Fac Fac Was Fac Res Res Acc Peak Influence 1558 | 5 154 80 211 92 . 217 487 441 505 . . . . 326 126 259 829 463 506 701 1558 536 443 1005 351 1401 833 326 533 Initial 714 | . 3 20 . 82 . . 78 127 124 . . . . 144 111 88 35 296 185 110 343 506 375 217 351 245 714 90 195 Average 278 | 1 69 23 77 51 . 113 276 223 277 . . . . 141 123 113 198 346 419 224 1117 523 281 388 351 863 372 206 343 Maximum Alert Level 4 | . . . 1 . . 1 2 2 2 . . . . 1 . 1 3 2 2 3 4 2 2 3 1 4 3 1 2 Low Security (%) 48 | 100 100 100 97 100 . 91 20 42 33 . . . . 75 100 78 64 8 1 58 . . 13 28 . . 25 56 4 Level 1 32 | . . . 2 . . 8 66 48 42 . . . . 24 . 21 18 46 36 32 2 . 78 40 100 2 44 43 74 Level 2 11 | . . . . . . . 13 8 23 . . . . . . . 13 44 62 2 21 100 8 16 . 52 3 . 21 Level 3 2 | . . . . . . . . . . . . . . . . . 3 . . 6 5 . . 15 . 2 26 . . Level 4 4 | . . . . . . . . . . . . . . . . . . . . . 69 . . . . 42 . . . Level 5 . | . . . . . . . . . . . . . . . . . . . . . . . . . . . . . . High Security . | . . . . . . . . . . . . . . . . . . . . . . . . . . . . . . Max Security . | . . . . . . . . . . . . . . . . . . . . . . . . . . . . . . Squads Dispatched 100 | . . . 6 1 . . 8 6 10 . . . . 13 . 3 4 . . 1 6 . 3 12 . 15 7 1 4 Investigation 17 | . . . 2 1 . . 1 . 2 . . . . 5 . 1 . . . . . . . 2 . . 3 . . Extermination 21 | . . . . . . . . . 3 . . . . 5 . 2 . . . . 1 . 3 3 . 1 . . 3 Reinforcement 38 | . . . 4 . . . 1 1 4 . . . . 3 . . 4 . . 1 2 . . 6 . 6 4 1 1 Assault 8 | . . . . . . . . 2 1 . . . . . . . . . . . 3 . . . . 2 . . . Garrison 16 | . . . . . . . 6 3 . . . . . . . . . . . . . . . 1 . 6 . . . Intercept . | . . . . . . . . . . . . . . . . . . . . . . . . . . . . . . Construction Impeded 7 | . . . . . . . . . 2 . . . . . . . . . . 1 1 . . 2 . 1 . . . Haulers Reinforced 7 | . . . . . . . . . . . . . . 1 . . . . . . . . . 3 . 2 1 . . Stealth | -11 -10 -10 -9 -9 -9 -8 -8 -8 -7 -7 -7 -7 -6 -6 -6 -6 -6 -6 -6 -6 -5 -5 -5 -4 -4 -4 -3 -2 -1 --------- Run | Scr Mat Min Mat Min Exi Min Mat Sto Fac Low Low Dat Pro Fac Was Fac Ext Cet Arc Hub Fac Was Fac Fac Was Fac Res Res Acc Distress Signals 31 | . . . 2 . . . 3 2 1 . . . . 2 . 1 1 1 . 2 1 . . 3 . 2 10 . . Communications Jammed 1 | . . . . . . . . . . . . . . . . . . . . . . . . . . . . . 1 Distress Signals 1 | . . . . . . . . . . . . . . . . . . . . . . . . . . . . . 1 Times Spotted 674 | . 26 27 34 9 . 19 53 39 50 10 11 . 8 47 6 13 25 16 22 9 45 4 25 57 . 47 28 6 38 Peak Tracking Total 21 | . 4 21 4 4 . 3 5 11 8 7 3 . 4 4 6 5 5 6 2 3 10 4 5 7 . 9 11 3 7 Tactical Retreats 46 | . 6 2 . . . 3 3 2 3 . 1 . . 6 . . . . . . 4 . 3 4 . 4 . 2 3 Traps | -11 -10 -10 -9 -9 -9 -8 -8 -8 -7 -7 -7 -7 -6 -6 -6 -6 -6 -6 -6 -6 -5 -5 -5 -4 -4 -4 -3 -2 -1 ------- Run | Scr Mat Min Mat Min Exi Min Mat Sto Fac Low Low Dat Pro Fac Was Fac Ext Cet Arc Hub Fac Was Fac Fac Was Fac Res Res Acc Traps Triggered 24 | . . . . . . . 1 1 1 . . . . 4 . 1 . . . . 1 . 4 3 . 2 3 1 2 Indirectly . | . . . . . . . . . . . . . . . . . . . . . . . . . . . . . . Trap Hack Attempts 159 | . 31 42 50 . . . 36 . . . . . . . . . . . . . . . . . . . . . . Triggered . | . . . . . . . . . . . . . . . . . . . . . . . . . . . . . . Disarmed 2 | . . . 2 . . . . . . . . . . . . . . . . . . . . . . . . . . Reprogrammed 11 | . 2 2 4 . . . 3 . . . . . . . . . . . . . . . . . . . . . . Reused 4 | . . . . . . . . 2 1 . . . . 1 . . . . . . . . . . . . . . . Traps Extracted 8 | . . 2 3 . . . 3 . . . . . . . . . . . . . . . . . . . . . . Installed 11 | . . . 2 . . . . 3 3 . . . . 3 . . . . . . . . . . . . . . . Triggered 6 | . . . . . . . . 2 1 . 1 . . 1 . . . . . . . . . 1 . . . . . Machines | -11 -10 -10 -9 -9 -9 -8 -8 -8 -7 -7 -7 -7 -6 -6 -6 -6 -6 -6 -6 -6 -5 -5 -5 -4 -4 -4 -3 -2 -1 ---------- Run | Scr Mat Min Mat Min Exi Min Mat Sto Fac Low Low Dat Pro Fac Was Fac Ext Cet Arc Hub Fac Was Fac Fac Was Fac Res Res Acc Machines Disabled 54 | . 1 1 . . . 3 3 1 3 . . . . . . 3 6 . 4 9 7 . 3 5 . 1 . . 4 Max in Single Turn 5 | . 1 1 . . . 2 1 1 1 . . . . . . 1 2 . 1 5 4 . 1 1 . . . . 2 Garrison Access 8 | . . . . . . . . . 1 . . . . 1 . . . . . 1 . . 1 2 . . 1 . 1 Network Hub 2 | . . . . . . . . . . . . . . . . . . . . 2 . . . . . . . . . Machines Sabotaged . | . . . . . . . . . . . . . . . . . . . . . . . . . . . . . . Garrisons Compromised 1 | . . . . . . . . . . . . . . . . 1 . . . . . . . . . . . . . Overloaded Fab Kills . | . . . . . . . . . . . . . . . . . . . . . . . . . . . . . . Fab Network Shutdowns 3 | . . . . . . . . . . . . . . . . . . . . . 1 . . 1 . 1 . . . Hacking | -11 -10 -10 -9 -9 -9 -8 -8 -8 -7 -7 -7 -7 -6 -6 -6 -6 -6 -6 -6 -6 -5 -5 -5 -4 -4 -4 -3 -2 -1 --------- Run | Scr Mat Min Mat Min Exi Min Mat Sto Fac Low Low Dat Pro Fac Was Fac Ext Cet Arc Hub Fac Was Fac Fac Was Fac Res Res Acc Machines Accessed 137 | . 9 1 11 1 1 . 13 3 9 . 1 4 . 14 . 9 11 3 . 6 4 . 5 10 . 4 8 2 8 Terminals 78 | . 8 . 8 . . . 9 3 5 . . . . 8 . 5 11 3 . 5 . . 1 4 . 1 2 1 4 Fabricators 18 | . . . . . . . . . 2 . . . . 4 . 2 . . . . 1 . 2 2 . 2 . 1 2 Repair Stations 15 | . 1 . 2 . . . 2 . . . . . . 1 . 2 . . . . 2 . . 1 . 1 2 . 1 Recycling Units . | . . . . . . . . . . . . . . . . . . . . . . . . . . . . . . Scanalyzers 10 | . . . 1 . . . 2 . 1 . . . . . . . . . . . 1 . 1 1 . . 3 . . Garrison Access 8 | . . . . . . . . . 1 . . . . 1 . . . . . 1 . . 1 2 . . 1 . 1 Total Hacks 581 | . 27 1 33 1 1 . 64 10 21 . 1 24 . 45 . 24 51 8 . 23 28 . 21 53 . 21 63 16 45 Successful 363 | . 12 1 22 1 1 . 38 6 12 . 1 24 . 27 . 14 32 6 . 19 23 . 10 30 . 14 36 11 23 Failed 218 | . 15 . 11 . . . 26 4 9 . . . . 18 . 10 19 2 . 4 5 . 11 23 . 7 27 5 22 Catastrophic 22 | . 3 . 1 . . . 2 2 . . . . . 4 . 3 1 . . . . . 1 2 . . 2 . 1 Database Lockouts . | . . . . . . . . . . . . . . . . . . . . . . . . . . . . . . Manual 224 | . 13 . 18 . . . 32 10 7 . . . . 19 . 7 42 8 . 14 . . 2 11 . 4 14 11 12 Terminals 319 | . 25 . 23 . . . 48 10 10 . . . . 25 . 12 51 8 . 22 . . 4 24 . 3 23 9 22 Fabricators 85 | . . . . . . . . . 8 . . . . 14 . 4 . . . . 5 . 14 11 . 13 . 7 9 Repair Stations 76 | . 2 . 7 . . . 8 . . . . . . 4 . 8 . . . . 9 . . 8 . 5 12 . 13 Recycling Units . | . . . . . . . . . . . . . . . . . . . . . . . . . . . . . . Scanalyzers 62 | . . . 3 . . . 8 . 2 . . . . . . . . . . . 14 . 2 7 . . 26 . . Garrison Access 11 | . . . . . . . . . 1 . . . . 2 . . . . . 1 . . 1 3 . . 2 . 1 Terminal Hacks 151 | . 8 1 8 1 1 . 20 4 4 . 1 24 . 8 . 2 23 6 . 10 . . . 11 . . 7 3 9 Record 14 | . . . . . 1 . 1 . . . . 11 . . . . 1 . . . . . . . . . . . . Part Schematic 16 | . 2 . . . . . . . . . . 7 . . . . 7 . . . . . . . . . . . . Robot Schematic 3 | . . . . . . . . . . . . 3 . . . . . . . . . . . . . . . . . Prototype ID Bank 5 | . . . . . . . 1 . . . . 3 . . . . 1 . . . . . . . . . . . . Open Door 6 | . . 1 . 1 . . . . . . 1 . . . . . 1 1 . . . . . . . . . . 1 Level Access Points 2 | . . . . . . . . . . . . . . . . . . . . . . . . . . . . 1 1 Branch Access Points 4 | . . . . . . . 1 . 1 . . . . . . . . . . 1 . . . 1 . . . . . Emergency Access Points 5 | . 1 . . . . . . . . . . . . . . . . . . 2 . . . . . . 1 1 . Terminal Index 1 | . . . . . . . . . . . . . . 1 . . . . . . . . . . . . . . . Fabricator Index 2 | . . . . . . . . . . . . . . 1 . . . . . . . . . 1 . . . . . Repair Station Index 1 | . . . . . . . . . . . . . . . . 1 . . . . . . . . . . . . . Scanalyzer Index 3 | . . . . . . . 1 . . . . . . . . . . . . . . . . 1 . . . . 1 Garrison Index 3 | . . . . . . . . . . . . . . 1 . . . . . . . . . 1 . . . 1 . Alert Level 1 | . . . . . . . . 1 . . . . . . . . . . . . . . . . . . . . . Unreport Threat 30 | . 1 . 1 . . . 3 2 . . . . . 3 . 1 4 4 . 2 . . . 4 . . 3 . 2 Locate Traps 18 | . 1 . 2 . . . 5 . . . . . . 1 . . 5 . . 1 . . . 2 . . . . 1 Surveillance Status 1 | . . . . . . . . . . . . . . . . . . . . 1 . . . . . . . . . Recall Investigation 2 | . . . . . . . 1 . . . . . . . . . . . . . . . . . . . 1 . . Recall Extermination 1 | . . . . . . . . . . . . . . . . . . . . . . . . 1 . . . . . Recall Reinforcements 4 | . . . 1 . . . . . 1 . . . . . . . 1 . . 1 . . . . . . . . . Hauler Manifests 3 | . . . 1 . . . 2 . . . . . . . . . . . . . . . . . . . . . . Registered Components 1 | . 1 . . . . . . . . . . . . . . . . . . . . . . . . . . . . Registered Prototypes 2 | . . . . . . . . . . . . . . . . . . . . . . . . . . . 1 . 1 Zone Layout 23 | . 2 . 3 . . . 5 1 2 . . . . 1 . . 3 1 . 2 . . . . . . 1 . 2 Fabricator Hacks 46 | . . . . . . . . . 3 . . . . 8 . 4 . . . . 4 . 8 6 . 8 . 2 3 Network Status 2 | . . . . . . . . . . . . . . 2 . . . . . . . . . . . . . . . Load Schematic 21 | . . . . . . . . . 2 . . . . 4 . 2 . . . . 1 . 3 2 . 4 . 1 2 Build 23 | . . . . . . . . . 1 . . . . 2 . 2 . . . . 3 . 5 4 . 4 . 1 1 Repair Station Hacks 55 | . 2 . 6 . . . 7 . . . . . . 4 . 7 . . . . 6 . . 5 . 3 7 . 8 Scan Component 31 | . 1 . 3 . . . 4 . . . . . . 2 . 4 . . . . 3 . . 3 . 2 5 . 4 Repair 24 | . 1 . 3 . . . 3 . . . . . . 2 . 3 . . . . 3 . . 2 . 1 2 . 4 Recycling Unit Hacks . | . . . . . . . . . . . . . . . . . . . . . . . . . . . . . . Scanalyzer 41 | . . . 3 . . . 2 . 2 . . . . . . . . . . . 13 . . 3 . . 18 . . Insert Component 19 | . . . 1 . . . 1 . 1 . . . . . . . . . . . 5 . . 1 . . 10 . . Analyze 22 | . . . 2 . . . 1 . 1 . . . . . . . . . . . 8 . . 2 . . 8 . . Garrison Access Hacks 8 | . . . . . . . . . 1 . . . . 1 . . . . . 1 . . 1 2 . . 1 . 1 Seal Access 8 | . . . . . . . . . 1 . . . . 1 . . . . . 1 . . 1 2 . . 1 . 1 Unauthorized Hacks 61 | . 2 . 5 . . . 9 2 2 . . . . 6 . 1 9 . . 8 . . 1 3 . 3 3 5 2 Terminals 50 | . 2 . 5 . . . 9 2 1 . . . . 4 . 1 9 . . 8 . . . . . 1 3 3 2 Track 22 | . 2 . 4 . . . 3 1 1 . . . . 2 . . 4 . . 2 . . . . . . 1 1 1 Assimilate 5 | . . . . . . . 1 . . . . . . . . . . . . 4 . . . . . . . . . Botnet 14 | . . . 1 . . . 2 . . . . . . 2 . 1 3 . . 1 . . . . . 1 1 1 1 Disrupt 3 | . . . . . . . 1 1 . . . . . . . . 1 . . . . . . . . . . . . Operators 6 | . . . . . . . 2 . . . . . . . . . 1 . . 1 . . . . . . 1 1 . Fabricators 11 | . . . . . . . . . 1 . . . . 2 . . . . . . . . 1 3 . 2 . 2 . Report 1 | . . . . . . . . . . . . . . . . . . . . . . . . 1 . . . . . Prioritize 4 | . . . . . . . . . . . . . . 1 . . . . . . . . . 1 . 1 . 1 . Siphon 6 | . . . . . . . . . 1 . . . . 1 . . . . . . . . 1 1 . 1 . 1 . Repair Stations . | . . . . . . . . . . . . . . . . . . . . . . . . . . . . . . Recycling Units . | . . . . . . . . . . . . . . . . . . . . . . . . . . . . . . Scanalyzers . | . . . . . . . . . . . . . . . . . . . . . . . . . . . . . . Garrison Access . | . . . . . . . . . . . . . . . . . . . . . . . . . . . . . . Data Cores Recovered 4 | . . . . . . . . . . . . . . 1 . . . . . 1 . . . 1 . . . . 1 Used 1 | . . . . . . . . . . . . . . . . . . . . 1 . . . . . . . . . Hacking Detections 112 | . 9 . 10 . . . 13 3 8 . . . . 13 . 7 10 1 . 5 4 . 3 7 . 4 7 2 6 Full Trace Events 8 | . . . 1 . . . 1 . 2 . . . . 2 . 1 . . . . . . . . . . 1 . . Feedback Events . | . . . . . . . . . . . . . . . . . . . . . . . . . . . . . . Feedback Blocked . | . . . . . . . . . . . . . . . . . . . . . . . . . . . . . . Robot Schematics Acquired 3 | . . . . . . . . . . . . 3 . . . . . . . . . . . . . . . . . Robots Built . | . . . . . . . . . . . . . . . . . . . . . . . . . . . . . . Matter . | . . . . . . . . . . . . . . . . . . . . . . . . . . . . . . Time . | . . . . . . . . . . . . . . . . . . . . . . . . . . . . . . Total Robot Build Rating . | . . . . . . . . . . . . . . . . . . . . . . . . . . . . . . Part Schematics Acquired 30 | . 2 . 1 . . . 1 . 1 . . 7 . . . . 6 . . . 5 . . 1 . . 6 . . Parts Built 29 | . . . . . . . . . 2 . . . . 3 . 2 . . . . 6 . 4 6 . 4 . 1 1 Matter 5312 | . . . . . . . . . 190 . . . . 508 . 636 . . . . 570 . 982 1032 . 665 . 312 417 Time 1716 | . . . . . . . . . 47 . . . . 216 . 168 . . . . 141 . 320 345 . 294 . 111 74 Total Part Build Rating 176 | . . . . . . . . . 10 . . . . 16 . 12 . . . . 30 . 22 48 . 20 . 9 9 Parts Repaired 24 | . 1 . 3 . . . 3 . . . . . . 2 . 3 . . . . 3 . . 2 . 1 2 . 4 Time 947 | . 26 . 90 . . . 92 . . . . . . 150 . 199 . . . . 89 . . 57 . 68 75 . 101 Parts Recycled . | . . . . . . . . . . . . . . . . . . . . . . . . . . . . . . Recycled Matter . | . . . . . . . . . . . . . . . . . . . . . . . . . . . . . . Retrieved Matter . | . . . . . . . . . . . . . . . . . . . . . . . . . . . . . . Retrieved Components . | . . . . . . . . . . . . . . . . . . . . . . . . . . . . . . Parts Scanalyzed 15 | . . . 1 . . . 1 . 1 . . . . . . . . . . . 5 . . 1 . . 6 . . Part Schematics Acquired 15 | . . . 1 . . . 1 . 1 . . . . . . . . . . . 5 . . 1 . . 6 . . Parts Damaged 4 | . . . . . . . . . 1 . . . . . . . . . . . 2 . . . . . 1 . . Bothacking | -11 -10 -10 -9 -9 -9 -8 -8 -8 -7 -7 -7 -7 -6 -6 -6 -6 -6 -6 -6 -6 -5 -5 -5 -4 -4 -4 -3 -2 -1 ------------ Run | Scr Mat Min Mat Min Exi Min Mat Sto Fac Low Low Dat Pro Fac Was Fac Ext Cet Arc Hub Fac Was Fac Fac Was Fac Res Res Acc Used RIF Installer . | . . . . . . . . . . . . . . . . . . . . . . . . . . . . . . Robots Hacked 12 | . . . . . . . 1 . . . . . . 3 . 3 2 . . . 2 . . 1 . . . . . Non-combat 12 | . . . . . . . 1 . . . . . . 3 . 3 2 . . . 2 . . 1 . . . . . Combat . | . . . . . . . . . . . . . . . . . . . . . . . . . . . . . . Robot Hacks Applied 14 | . . . . . . . 1 . . . . . . 3 . 4 2 . . . 3 . . 1 . . . . . no_distress 9 | . . . . . . . 1 . . . . . . 2 . 3 2 . . . 1 . . . . . . . . find_chute 3 | . . . . . . . . . . . . . . 1 . . . . . . 1 . . 1 . . . . . find_fabricator 2 | . . . . . . . . . . . . . . . . 1 . . . . 1 . . . . . . . . Relay Couplers Released . | . . . . . . . . . . . . . . . . . . . . . . . . . . . . . . Robots Rewired 8 | . . . . . . . . . . 2 . . . . . . 6 . . . . . . . . . . . . Allies Hacked 2 | . . . . . . . . . . . . . . . . . . . . . . . . . . 2 . . . Hacks Repelled 1 | . . . . . . . . . . . . . . . . . . . . . . . . . . 1 . . . Allies | -11 -10 -10 -9 -9 -9 -8 -8 -8 -7 -7 -7 -7 -6 -6 -6 -6 -6 -6 -6 -6 -5 -5 -5 -4 -4 -4 -3 -2 -1 -------- Run | Scr Mat Min Mat Min Exi Min Mat Sto Fac Low Low Dat Pro Fac Was Fac Ext Cet Arc Hub Fac Was Fac Fac Was Fac Res Res Acc Total Allies 53 | . . . . 5 . . 1 2 . 2 . . 1 . . . 15 5 . 2 . . . . 20 . . . . Largest Group 20 | . . . . 3 3 3 1 2 . 2 1 . 1 . . . 12 14 13 13 1 . . . 20 20 . . . Highest-Rated Group 825 | . . . . 51 40 40 10 62 . 48 32 . 94 . . . 435 825 794 653 94 . . . 759 759 . . . Highest-Rated Ally 156 | . . . . 31 16 16 10 31 . 32 32 . 94 . . . 156 150 138 94 94 . . . 50 50 . . . Total Orders 70 | . . . . . . . . . . . . . . 3 . . 8 2 . . . 1 4 44 . 2 6 . . FOLLOW 2 | . . . . . . . . . . . . . . . . . . . . . . . . 2 . . . . . RETURN 68 | . . . . . . . . . . . . . . 3 . . 8 2 . . . 1 4 42 . 2 6 . . Ally Attacks 1118 | . . . . 8 . 55 . 21 . 5 1 . 22 43 . 5 179 87 11 17 6 . 43 389 . 176 50 . . Total Damage 23414 | . . . . 136 . 538 . 378 . 108 28 . 701 670 . 121 3498 2432 303 429 234 . 814 7159 . 4901 964 . . Kills 144 | . . . . . . 9 . 2 . 1 1 . 5 9 . . 27 14 2 5 1 . 4 37 . 25 2 . . Allies Corrupted 4 | . . . . . . . . . . . . . . 1 . . . . . 3 . . . . . . . . . Allies Melted . | . . . . . . . . . . . . . . . . . . . . . . . . . . . . . . Intel | -11 -10 -10 -9 -9 -9 -8 -8 -8 -7 -7 -7 -7 -6 -6 -6 -6 -6 -6 -6 -6 -5 -5 -5 -4 -4 -4 -3 -2 -1 ------- Run | Scr Mat Min Mat Min Exi Min Mat Sto Fac Low Low Dat Pro Fac Was Fac Ext Cet Arc Hub Fac Was Fac Fac Was Fac Res Res Acc Robot Analysis Total . | . . . . . . . . . . . . . . . . . . . . . . . . . . . . . . Derelict Logs Recovered 7 | . . 2 . 2 . . . . . 1 . . 2 . . . . . . . . . . . . . . . . Drone Launches 91 | . . . . . . . . . . . . . . 6 . 4 8 4 . . 1 . 7 49 1 2 9 . . Drone Recoveries 78 | . . . . . . . . . . . . . . 5 . . 10 2 . . . 1 3 48 . 2 7 . . Exploration | -11 -10 -10 -9 -9 -9 -8 -8 -8 -7 -7 -7 -7 -6 -6 -6 -6 -6 -6 -6 -6 -5 -5 -5 -4 -4 -4 -3 -2 -1 ------------- Run | Scr Mat Min Mat Min Exi Min Mat Sto Fac Low Low Dat Pro Fac Was Fac Ext Cet Arc Hub Fac Was Fac Fac Was Fac Res Res Acc Turns Passed 29990 | 114 1231 1001 1990 1194 631 1174 3114 905 1790 668 488 57 394 3098 66 1028 853 380 511 285 1217 47 1576 1537 207 1053 1448 337 1596 Spaces Moved 20111 | 53 565 472 938 667 326 563 1080 319 896 710 480 78 368 2736 90 671 772 226 255 292 677 68 955 1171 214 622 1904 282 1661 Core 3 | 2 . . . . . . . . . . . . . . . . . . . . . . . . . 1 . . . Treads 5429 | 50 565 472 938 667 326 563 1080 319 449 . . . . . . . . . . . . . . . . . . . . Legs . | . . . . . . . . . . . . . . . . . . . . . . . . . . . . . . Wheels 448 | 1 . . . . . . . . 447 . . . . . . . . . . . . . . . . . . . . Hover 14231 | . . . . . . . . . . 710 480 78 368 2736 90 671 772 226 255 292 677 68 955 1171 214 621 1904 282 1661 Flight . | . . . . . . . . . . . . . . . . . . . . . . . . . . . . . . Fastest Speed 48 | 50 160 160 165 172 172 192 192 205 130 72 72 72 72 58 65 65 72 72 72 72 68 68 68 58 58 53 48 48 48 Average Speed 104 | 154 166 179 168 172 187 192 226 211 152 72 79 72 74 84 65 68 72 73 135 72 92 68 94 78 67 59 48 54 48 Slowest Speed 1850 | 160 180 180 200 172 192 192 240 305 190 72 142 72 142 146 65 72 72 142 142 72 146 68 146 143 143 1850 48 142 48 Overloaded Moves . | . . . . . . . . . . . . . . . . . . . . . . . . . . . . . . Propulsion Burnouts . | . . . . . . . . . . . . . . . . . . . . . . . . . . . . . . Robots Hopped . | . . . . . . . . . . . . . . . . . . . . . . . . . . . . . . Cave-ins Triggered 1 | . . . . . . . . . 1 . . . . . . . . . . . . . . . . . . . . Exploration Rate (%) 56 | 4 96 68 78 99 68 99 70 48 19 73 59 69 48 48 79 16 90 83 94 36 18 83 17 26 95 18 43 8 34 Regions Visited 29 Branch Regions 13 Pre-discovered Areas 4 | . . 1 . . 1 . . . . . . 1 1 . . . . . . . . . . . . . . . . Known Exits Taken 7 | . . . . . . 1 1 . 1 1 . . 1 . . . . . . . . . 1 . . . . 1 . Unknown Exits Taken 16 | 1 1 1 1 1 1 . . 1 . . 1 1 . . . 1 1 1 1 1 . . . . . 1 1 . . Scrap Searched 7 | . . 1 . 2 . 1 . . . 1 . . 2 . . . . . . . . . . . . . . . . Spaces Dug 143 | . . 14 1 . . . . . 3 . . . . 22 . 7 . . . . 52 . 2 5 . . 2 12 23 Terrain Destroyed 1462 | . 13 74 58 6 . 18 104 16 90 2 4 . . 48 . 7 59 121 7 390 231 . 5 64 . 16 2 12 115 Melee 66 | . . . 1 . . . . . 3 . . . . 18 . 7 . . . . 1 . 1 . . . 2 12 21 Projectile 81 | . . . . . . 1 2 1 4 2 4 . . 4 . . 1 1 7 . 18 . 4 6 . 16 . . 10 AOE 1315 | . 13 74 57 6 . 17 102 15 83 . . . . 26 . . 58 120 . 390 212 . . 58 . . . . 84 Terrain Rammed . | . . . . . . . . . . . . . . . . . . . . . . . . . . . . . . Walls Destroyed . | . . . . . . . . . . . . . . . . . . . . . . . . . . . . . . Machines Disabled . | . . . . . . . . . . . . . . . . . . . . . . . . . . . . . . Actions | -11 -10 -10 -9 -9 -9 -8 -8 -8 -7 -7 -7 -7 -6 -6 -6 -6 -6 -6 -6 -6 -5 -5 -5 -4 -4 -4 -3 -2 -1 --------- Run | Scr Mat Min Mat Min Exi Min Mat Sto Fac Low Low Dat Pro Fac Was Fac Ext Cet Arc Hub Fac Was Fac Fac Was Fac Res Res Acc Total 27119 | 73 763 597 1251 695 349 606 1594 459 1164 802 537 78 457 3303 97 1194 1017 419 361 349 1114 68 1547 1721 276 1237 2391 411 2189 Wait 4033 | 3 74 12 123 5 . 12 249 41 82 41 18 . 38 230 3 437 179 151 66 34 260 . 429 363 46 490 289 69 289 Move 20084 | 52 564 471 937 666 325 562 1080 318 894 709 479 77 367 2736 89 670 771 225 254 291 677 67 954 1171 213 621 1903 281 1660 Hop . | . . . . . . . . . . . . . . . . . . . . . . . . . . . . . . Pick Up 368 | 4 19 14 23 5 13 2 63 20 12 1 4 . 11 26 2 14 5 6 2 1 10 1 24 25 5 15 25 2 14 Fast Attach 155 | 8 3 3 6 1 1 . 6 4 8 1 1 . 1 21 1 2 1 3 . 3 10 . 11 7 1 2 29 2 19 Attach 180 | . . 5 5 . 1 . 13 4 18 4 1 . 4 17 . 5 2 3 . . 14 . 11 14 2 10 23 4 20 Detach 63 | 1 . . . . 1 . 3 1 . . . . . 8 . 1 1 . . . 3 . 7 6 . 2 16 3 10 Swap 266 | 1 9 8 15 2 3 1 14 10 15 7 4 1 1 29 . 10 5 10 6 6 15 . 18 26 2 14 17 8 9 Drop 329 | . 14 14 22 5 5 3 29 7 25 6 5 . 7 34 2 15 5 7 3 5 4 . 18 25 6 11 40 4 8 Fire 1046 | 4 49 28 67 11 . 26 98 50 60 29 25 . 25 64 . 23 30 14 30 9 75 . 71 63 . 71 41 9 74 Melee 396 | . . . 1 . . . 2 1 46 2 . . 3 135 . 16 17 . . . 46 . 3 1 . . 8 29 86 Ram 1 | . . . . . . . . . . . . . . . . . . . . . . . . 1 . . . . . Kick . | . . . . . . . . . . . . . . . . . . . . . . . . . . . . . . Crush 1 | . . . . . . . 1 . . . . . . . . . . . . . . . . . . . . . . Escape Stasis 14 | . . . . . . . . . 1 . . . . . . . . . . . . . . 13 . . . . . Rewire 4 | . . . . . . . . . . 2 . . . . . . 1 . . . . . . . . 1 . . . Trap 170 | . 31 42 52 . . . 36 3 3 . . . . 3 . . . . . . . . . . . . . . . Miscellaneous 9 | . . . . . . . . . . . . . . . . 1 . . . . . . 1 6 1 . . . . Route ------- -11/Scrapyard -10/Materials (discovered 5 exits: *Mat x3 / *Min x2) -10/Mines -9/Materials (discovered 3 exits: *Mat x2 / *Min) -9/Mines (discovered 3 exits: *Mat x2 / *Exi) -9/Exiles (discovered 2 exits: [*Min x2]) -8/Mines (discovered 2 exits: *Mat x2) -8/Materials (discovered 4 exits: *Fac x2 / *Sto x2) -8/Storage (discovered 2 exits: *Fac / [*Rec]) -7/Factory (discovered 4 exits: *Fac x2 / *Low x2) -7/Lower Caves -7/Lower Caves (discovered 2 exits: *Fac / *Dat) -7/Data Miner -6/Proximity Caves -6/Factory (discovered 4 exits: *Fac / *Low x2 / *Ext) -6/Waste -6/Factory -6/Extension (discovered 3 exits: *Fac x2 / *Cet) -6/Cetus (discovered 2 exits: *Fac / *Arc) -6/Archives (discovered 3 exits: *Fac / *Hub x2) -6/Hub_04(d) (discovered 2 exits: *Fac x2) -5/Factory -5/Waste -5/Factory -4/Factory (discovered 4 exits: *Res / Upp x2 / Arm) -4/Waste -4/Factory -3/Research -2/Research (discovered 3 exits: *Acc x3) -1/Access To Epsilon Eridani History --------- Turn | Location | Event 19 | -11/Scrapyard | Discovered new exit (range 15) 115 | -11/Scrapyard | Entered Materials 312 | -10/Materials | Build established: Mutant 378 | -10/Materials | Discovered new exit (range 16) 429 | -10/Materials | Repaired Lgt. Treads 677 | -10/Materials | Discovered new exit (range 8) 835 | -10/Materials | Discovered new exit (range 4) 1140 | -10/Materials | Discovered new exit (range 15) 1317 | -10/Materials | Discovered new exit (range 11) 1346 | -10/Materials | Entered Mines 1361 | -10/Mines | Learned Materials terminal intel 1376 | -10/Mines | Met a Derelict who couldn't figure out how to use a Trap Extractor 1605 | -10/Mines | Learned location of Mines (-9) 1623 | -10/Mines | Discovered new exit (range 4) 1655 | -10/Mines | Assembled infested the area 1723 | -10/Mines | Lost 3 parts (1p1n1w) 1728 | -10/Mines | Destroyed 17 combat bots 1977 | -10/Mines | Received a Rocket Launcher from a helpful Derelict 2067 | -10/Mines | Core integrity fell below 50% 2347 | -10/Mines | Entered Materials 2347 | -9/Materials | Evolved 2 slots: Utility x2 2348 | -9/Materials | Loaded intel: 12 terminal locations 2386 | -9/Materials | Repaired Lgt. Treads 2414 | -9/Materials | Repaired EM Pulse Gun 2453 | -9/Materials | Repaired Lgt. Deuterium Engine 2653 | -9/Materials | Build established: Hauler-Mutant 3372 | -9/Materials | Discovered new exit (range 16) 3734 | -9/Materials | Discovered new exit (range 9) 4186 | -9/Materials | Discovered new exit (range 15) 4337 | -9/Materials | Entered Mines 4417 | -9/Mines | Found a damaged Exp. Sensor Array with a note attached 4421 | -9/Mines | Found Prototype Device 4444 | -9/Mines | Identified exit to Materials 4620 | -9/Mines | Learned Materials stockpile data 5182 | -9/Mines | Deemed a non-threat by the Exiles lab entrance 5182 | -9/Mines | Discovered new exit (range 5) 5266 | -9/Mines | Discovered exit to Materials (range 6) 5286 | -9/Mines | Met a Derelict shopkeep closing up shop 5365 | -9/Mines | Assisted by bots powering up and referring to "LRC-V3" 5531 | -9/Mines | Entered Exiles 5531 | -9/Exiles | Accompanied by 3 allies 5554 | -9/Exiles | Discovered new exit (range 15) 5574 | -9/Exiles | Met 8R-AWN 5602 | -9/Exiles | Met EX-HEX 5726 | -9/Exiles | Met EX-DEC 5767 | -9/Exiles | Visited The Gauntlet 5864 | -9/Exiles | Learned location of Zion (-6) 5905 | -9/Exiles | Met EX-BIN 6147 | -9/Exiles | Discovered new exit (range 10) 6162 | -9/Exiles | Entered Mines 6162 | -8/Mines | Accompanied by 3 allies 6187 | -8/Mines | Discovered exit to Materials (range 3) 6491 | -8/Mines | Discovered exit to Materials (range 5) 7336 | -8/Mines | Entered Materials 7336 | -8/Materials | Evolved 2 slots: Utility x2 7888 | -8/Materials | Garrison activated, responded to threat 8085 | -8/Materials | Lost 3 parts (1p1n1w) 8530 | -8/Materials | Discovered new exit (range 7) 8570 | -8/Materials | Identified exit to Storage 9144 | -8/Materials | Repaired Gauss Rifle 9267 | -8/Materials | Discovered new exit (range 13) 10207 | -8/Materials | Repaired Adv. Treads 10241 | -8/Materials | Repaired Rnf. Ion Engine 10450 | -8/Materials | Entered Storage 10565 | -8/Storage | Garrison activated, responded to threat 10639 | -8/Storage | Core integrity fell below 50% 10929 | -8/Storage | Used back door to open Recycling access 10929 | -8/Storage | Discovered new exit (range 5) 10939 | -8/Storage | Met a pair of Derelict thieves 11047 | -8/Storage | Destroyed 10 combat bots 11316 | -8/Storage | Discovered new exit (range 16) 11355 | -8/Storage | Entered Factory 11355 | -7/Factory | Evolved 2 slots: Propulsion x1, Utility x1 11463 | -7/Factory | Discovered new exit (range 16) 11490 | -7/Factory | Identified Exp. Sensor Array 11680 | -7/Factory | Identified exit to Factory 11820 | -7/Factory | Discovered exit to Factory (range 14) 11919 | -7/Factory | Build established: Hacker-Mutant 12128 | -7/Factory | Identified exit to Lower Caves 12570 | -7/Factory | Crushed by falling debris 12601 | -7/Factory | Lost 7 parts (1p4u2w) 12619 | -7/Factory | Found Powered Armor 12621 | -7/Factory | Found Powered Armor 12624 | -7/Factory | Found Powered Armor 12726 | -7/Factory | Found Powered Armor 12729 | -7/Factory | Fabricated Cmb. Airjet (x2) 12755 | -7/Factory | Lost 5 parts (1p2n1u1w) 12955 | -7/Factory | First assault squad dispatched 13032 | -7/Factory | Lost 3 parts (1p1u1w) 13066 | -7/Factory | Found Powered Armor 13145 | -7/Factory | Entered Lower Caves 13313 | -7/Lower Caves | Attracted the attention of an 0b10 outpost 13375 | -7/Lower Caves | Core integrity fell below 50% 13452 | -7/Lower Caves | Build established: Scavenger-Mutant 13506 | -7/Lower Caves | Encountered a Warlord checkpoint 13514 | -7/Lower Caves | Identified exit to Lower Caves 13813 | -7/Lower Caves | Entered another Lower Caves area 13813 | -7/Lower Caves | Accompanied by 1 ally 13863 | -7/Lower Caves | Discovered exit to Factory (range 15) 13974 | -7/Lower Caves | Attracted the attention of an 0b10 checkpoint 14269 | -7/Lower Caves | Discovered new exit (range 5) 14278 | -7/Lower Caves | Spotted B-75 Beast 14301 | -7/Lower Caves | Entered Data Miner 14301 | -7/Data Miner | Discovered new exit (range 6) 14315 | -7/Data Miner | Met Data Miner 14329 | -7/Data Miner | Learned location of Section 7 (-2) 14329 | -7/Data Miner | Acquired the access code to Warlord's prototype stash 14342 | -7/Data Miner | Received God Mode back door access code from Data Miner 14358 | -7/Data Miner | Entered Proximity Caves 14369 | -6/Proximity Caves | Spotted B-75 Beast 14392 | -6/Proximity Caves | Destroyed B-75 Beast 14421 | -6/Proximity Caves | Lost 4 parts (2u2w) 14449 | -6/Proximity Caves | Escorted by Enhanced Grunt 14572 | -6/Proximity Caves | Learned location of 1 exit from Factory 14730 | -6/Proximity Caves | Discovered exit to Factory (range 15) 14752 | -6/Proximity Caves | Entered Factory 14752 | -6/Factory | Evolved 2 slots: Utility x2 14753 | -6/Factory | Identified exit to Lower Caves 14962 | -6/Factory | Lost 3 parts (2u1w) 14988 | -6/Factory | Fabricated Combat Drone Bay (x1) 15203 | -6/Factory | Discovered exit to Lower Caves (range 17) 15442 | -6/Factory | Discovered new exit (range 15) 15847 | -6/Factory | Lost 3 parts (2n1w) 15964 | -6/Factory | Repaired Broken Exp. Sensor Array? 16054 | -6/Factory | Repaired Cmb. Airjet 16232 | -6/Factory | Build established: Hacker-Mutant 16938 | -6/Factory | Build established: Scavenger-Mutant 17130 | -6/Factory | Fabricated Cmb. Airjet? 17492 | -6/Factory | Discovered new exit (range 9) 17538 | -6/Factory | Incoming investigation squad redirected 17850 | -6/Factory | Sucked down chute 17850 | -6/Factory | Entered Waste 17858 | -6/Waste | Spotted C-40 Crusher 17862 | -6/Waste | Spotted C-40 Crusher 17865 | -6/Waste | EMP discharged 17885 | -6/Waste | Spotted C-40 Crusher 17886 | -6/Waste | Spotted C-40 Crusher 17891 | -6/Waste | Spotted C-40 Crusher 17897 | -6/Waste | Spotted C-40 Crusher 17903 | -6/Waste | Discovered new exit (range 18) 17916 | -6/Waste | Entered Factory 18026 | -6/Factory | Found Powered Armor 18079 | -6/Factory | Incoming investigation squad redirected 18130 | -6/Factory | Repaired Cmb. Airjet 18267 | -6/Factory | Incoming assault squad redirected 18307 | -6/Factory | Build established: Hacker-Mutant 18332 | -6/Factory | Incoming assault squad redirected 18466 | -6/Factory | Fabricated Combat Drone Bay (x1) 18638 | -6/Factory | Repaired Broken Neutron Missile Launcher 18689 | -6/Factory | Repaired Cmb. Airjet 18722 | -6/Factory | Core integrity fell below 50% 18817 | -6/Factory | Discovered new exit (range 6) 18927 | -6/Factory | Fabricated Combat Drone Bay (x1) 18944 | -6/Factory | Entered Extension 18944 | -6/Extension | Accompanied by 3 allies 19056 | -6/Extension | Rescued a captive Derelict 19057 | -6/Extension | Rescued a captive Derelict 19447 | -6/Extension | Spotted B-75 Beast 19472 | -6/Extension | Allies destroyed B-75 Beast 19474 | -6/Extension | Spotted B-75 Beast 19489 | -6/Extension | Allies destroyed B-75 Beast 19510 | -6/Extension | Discovered new exit (range 4) 19524 | -6/Extension | Rescued a captive Derelict 19570 | -6/Extension | Rescued a captive Derelict 19571 | -6/Extension | Rescued a captive Derelict 19657 | -6/Extension | Rescued a captive Derelict 19657 | -6/Extension | Rescued a captive Derelict 19702 | -6/Extension | Rescued a captive Derelict 19733 | -6/Extension | Rescued A7 19759 | -6/Extension | Discovered new exit (range 11) 19759 | -6/Extension | Discovered new exit (range 6) 19797 | -6/Extension | Entered Cetus 19797 | -6/Cetus | Accompanied by 11 allies (A7) 19802 | -6/Cetus | Acquired a Cetus Manufacturing Module code from A7 19813 | -6/Cetus | Spotted Cetus Guard 19813 | -6/Cetus | Spotted Cetus Guard 19814 | -6/Cetus | Spotted Cetus Guard 19815 | -6/Cetus | Spotted Cetus Guard 19826 | -6/Cetus | Allies destroyed Cetus Guard 19827 | -6/Cetus | Allies destroyed Cetus Guard 19827 | -6/Cetus | Allies destroyed Cetus Guard 19832 | -6/Cetus | Allies destroyed Cetus Guard 19874 | -6/Cetus | Started Cetus Manufacturing Module 19899 | -6/Cetus | Manufactured an Enhanced Grunt 19903 | -6/Cetus | Escorted A7 to Cetus Mainframe 19924 | -6/Cetus | Manufactured an Enhanced Grunt 19949 | -6/Cetus | Manufactured an Enhanced Grunt 19974 | -6/Cetus | Manufactured an Enhanced Grunt 19999 | -6/Cetus | Manufactured an Enhanced Grunt 20035 | -6/Cetus | Discovered new exit (range 16) 20060 | -6/Cetus | Spotted Cetus Guard 20060 | -6/Cetus | Spotted Cetus Guard 20062 | -6/Cetus | Spotted Cetus Guard 20071 | -6/Cetus | Discovered new exit (range 16) 20072 | -6/Cetus | Spotted Cetus Guard 20080 | -6/Cetus | Destroyed Cetus Guard 20081 | -6/Cetus | Allies destroyed Cetus Guard 20083 | -6/Cetus | Allies destroyed Cetus Guard 20085 | -6/Cetus | Allies destroyed Cetus Guard 20093 | -6/Cetus | Met Revision 17 20177 | -6/Cetus | Entered Archives 20177 | -6/Archives | Accompanied by 13 allies (A7) 20182 | -6/Archives | Received a hacking code to weaken MAIN.C 20205 | -6/Archives | Discovered new exit (range 15) 20223 | -6/Archives | Unable to access archive contents 20223 | -6/Archives | Unable to access archive contents 20358 | -6/Archives | Discovered new exit (range 16) 20388 | -6/Archives | Build established: Scavenger-Mutant 20489 | -6/Archives | Discovered new exit (range 13) 20688 | -6/Archives | Entered Hub_04(d) 20688 | -6/Hub_04(d) | Accompanied by 11 allies 20690 | -6/Hub_04(d) | Discovered new exit (range 11) 20875 | -6/Hub_04(d) | Discovered new exit (range 15) 20949 | -6/Hub_04(d) | Network Hub disabled 20955 | -6/Hub_04(d) | Network Hub disabled 20965 | -6/Hub_04(d) | Found Prototype Device 20965 | -6/Hub_04(d) | Identified Exp. Thermal Shield 20973 | -6/Hub_04(d) | Entered Factory 20973 | -5/Factory | Accompanied by 1 ally 20973 | -5/Factory | Evolved 2 slots: Propulsion x1, Utility x1 21273 | -5/Factory | First assault squad dispatched 21294 | -5/Factory | Destroyed 7 combat bots 21338 | -5/Factory | Incoming assault squad redirected 21376 | -5/Factory | Destroyed 9 combat bots 21521 | -5/Factory | Repaired Cmb. Airjet 21556 | -5/Factory | Repaired Mic. Fission Core 21634 | -5/Factory | Build established: Hacker-Mutant 21701 | -5/Factory | Lost 4 parts (2u2w) 21728 | -5/Factory | Repaired Centrium Medium Armor Plating 21797 | -5/Factory | Fabricated Cmb. Airjet (x2) 21848 | -5/Factory | Fabricated Cmb. Airjet (x2) 21872 | -5/Factory | Local fabrication network quarantined 21899 | -5/Factory | Fabricated Cmb. Airjet (x2) 21902 | -5/Factory | Incoming assault squad redirected 22053 | -5/Factory | Lost 3 parts (3u) 22181 | -5/Factory | Discovered new exit (range 18) 22190 | -5/Factory | Sucked down chute 22190 | -5/Factory | Entered Waste 22195 | -5/Waste | 1 allies followed down the chute 22197 | -5/Waste | Spotted C-40 Crusher 22199 | -5/Waste | Spotted C-40 Crusher 22205 | -5/Waste | EMP discharged 22205 | -5/Waste | System corruption reached 10% 22206 | -5/Waste | Spotted C-40 Crusher 22219 | -5/Waste | Spotted C-40 Crusher 22220 | -5/Waste | Spotted C-40 Crusher 22223 | -5/Waste | Discovered new exit (range 16) 22236 | -5/Waste | Identified exit to Factory 22237 | -5/Waste | Entered Factory 23099 | -5/Factory | Fabricated Exp. Sensor Array? 23265 | -5/Factory | Core integrity fell below 50% 23340 | -5/Factory | Lost 5 parts (1n1u3w) 23426 | -5/Factory | Fabricated Exp. Sensor Array (x1) 23539 | -5/Factory | Fabricated Combat Drone Bay? 23570 | -5/Factory | Fabricated Combat Drone Bay? 23745 | -5/Factory | Discovered new exit (range 6) 23761 | -5/Factory | Identified exit to Factory 23813 | -5/Factory | Entered another Factory area 23813 | -4/Factory | Accompanied by 2 allies 23813 | -4/Factory | Evolved 2 slots: Utility x2 23888 | -4/Factory | Garrison activated, responded to threat 23946 | -4/Factory | Lost 3 parts (1u2w) 24092 | -4/Factory | Identified exit to Upper Caves 24092 | -4/Factory | Identified exit to Armory 24225 | -4/Factory | Fabricated Combat Drone Bay (x1) 24316 | -4/Factory | Fabricated Combat Drone Bay (x1) 24391 | -4/Factory | Discovered new exit (range 17) 24612 | -4/Factory | Fabricated Cmb. Linear Gravjet (x2) 24665 | -4/Factory | Fabricated Cmb. Linear Gravjet (x2) 24728 | -4/Factory | Repaired Cmb. Linear Gravjet 24762 | -4/Factory | Repaired Neutron Missile Launcher 24909 | -4/Factory | Local fabrication network quarantined 25350 | -4/Factory | Sucked down chute 25350 | -4/Factory | Entered Waste 25351 | -4/Waste | Joined by Warlord forces that had cleared the area 25353 | -4/Waste | Found Prototype Reactor 25360 | -4/Waste | Found Prototype Device 25392 | -4/Waste | Identified Exp. Transmission Jammer 25396 | -4/Waste | Found Damper Plating 25464 | -4/Waste | Found Damper Plating 25478 | -4/Waste | Found Prototype Device 25478 | -4/Waste | Identified Imp. Particle Accelerator 25516 | -4/Waste | Discovered new exit (range 12) 25557 | -4/Waste | Entered Factory 25557 | -4/Factory | Accompanied by 21 allies 25577 | -4/Factory | Discovered new exit (range 23) 25672 | -4/Factory | Repaired Broken Imp. Particle Accelerator 25757 | -4/Factory | Fabricated Tactical Coordination Suite (x1) 25936 | -4/Factory | Fabricated Remote Shield (x2) 26028 | -4/Factory | Fabricated Exp. Sensor Array (x1) 26127 | -4/Factory | Garrison activated, responded to threat 26158 | -4/Factory | Local fabrication network quarantined 26212 | -4/Factory | P-70 Sage assimilated allied T9-IL9(g) 26275 | -4/Factory | Garrison activated, responded to threat 26307 | -4/Factory | First assault squad dispatched 26329 | -4/Factory | Incoming assault squad redirected 26463 | -4/Factory | Lost 3 parts (1p2u) 26578 | -4/Factory | Incoming assault squad redirected 26610 | -4/Factory | Entered Research 26610 | -3/Research | Evolved 2 slots: Power x1, Propulsion x1 26610 | -3/Research | Identified Vortex Chain Reactor 26641 | -3/Research | Lost 5 parts (1p3u1w) 26810 | -3/Research | Revision forces began assault on 0b10 26825 | -3/Research | Met up with Revision 17++ 27100 | -3/Research | Discovered new exit (range 12) 27171 | -3/Research | Found Prototype Device 27171 | -3/Research | Identified Exp. Thermal Defense Suite 27252 | -3/Research | Found Exp. Transmission Jammer 27310 | -3/Research | Research terminal network offline 27525 | -3/Research | Found Prototype Device 27525 | -3/Research | Identified Exp. ECM Suite 27940 | -3/Research | Repaired Broken Cmb. Linear Gravjet 27982 | -3/Research | Repaired Broken Imp. Fusion Compressor 28006 | -3/Research | Spotted Striker 28016 | -3/Research | Destroyed Striker 28018 | -3/Research | Spotted Executioner 28058 | -3/Research | Entered another Research area 28058 | -2/Research | Evolved 2 slots: Utility x2 28071 | -2/Research | Identified exit to Access 28143 | -2/Research | Fabricated Vortex Chain Reactor (x1) 28395 | -2/Research | Entered Access 28395 | -1/Access | Evolved 2 slots: Utility x1, Weapon x1 28744 | -1/Access | System corruption reached 10% 29101 | -1/Access | Lost 4 parts (1p1n1u1w) 29181 | -1/Access | Build established: Wizard-Mutant 29315 | -1/Access | Lost 5 parts (1p2u2w) 29472 | -1/Access | Repaired Cmb. Linear Gravjet 29495 | -1/Access | Repaired Cmb. Antigrav System 29528 | -1/Access | Repaired Broken Adv. Weapon Cycler 29553 | -1/Access | Repaired Enh. Nova Cannon 29694 | -1/Access | Fabricated Vortex Chain Reactor (x1) 29728 | -1/Access | Identified exit to Surface 29914 | -1/Access | System corruption reached 30% 29946 | -1/Access | Spotted B-99 Colossus 29991 | *** | Escaped! Last Messages --------------- 29928_ System corrupted: Shock Maul targeting data glitched. 29931_ S-43 Plague destroyed. 29934_ Acquired 48 matter. 29935_ System corrupted: FCS attempts to trigger Neutron Missile Launcher. 29935_ System corrupted: Neutron Missile Launcher misfires. 29945_ The unstable cave ceiling collapses. 29945_ R-10 Processor collects Prototype Energy Gun. 29950_ System corrupted: Component data lost. 29956_ System corrupted: Plasma Lance targeting data glitched. 29961_ S-43 Plague destroyed. 29964_ Acquired 25 matter. 29968_ B|DPS0>Open Sealed Barrier opened. 29989_ The Access Shell folds into the floor. 29990_ K-01 Serf cleans the Terminal. Map ----- +----------------------------------------------------+ | # ########???# !]= +?????????????# #????????? | | # #???# !]= #?????????????# +????????? | | # #???# != #?????????????# #????????? | | # #???# ############### #????????? | | #??## #????????? | | #??# #????????? | | % #??# = #????????? | | * ####+###### #????????? | | [[ # [% #################### +????????? | | [ # #?????###########??# #????????? | | # # " #????? ??# #????????? | | # """ #???? ?# #????????? | | # # """ #???? ?# #????????? | | # ###### " =#??? # #????????? | | # " #??? # #????????? | | # # #??? + #????????? | | # =! # #??? # #????????? | | # = ##########??? # #????????? | | # = #?????????????#############?# #????????? | | # #???????????????????###?????# #????????? | | # #??????????########## ####### #????????? | | # #??????????" #????????? | | # #??????????" #????????? | | ######+###??????????" #????????? | | ???? ???????????" #????????? | | ?? ?????????" "@ #????????? | | ???????" "" #????????? | | ?????" #????????? | | ######+### ???" k #????????? | | ?????????? "??" """ """ #????????? | | ??????????? "??" """T""" #????????? | | ????????????######??########## ####### #????????? | | ?????????????????????????????###?????? #????????? | | ?????????????????????????????????????? #????????? | | ?????????????????????????????????????? #????????? | | ?????????????????????????????????????? #????????? | | ?????????????????????????????????????? +????????? | | ?????????????????????????????????????????????????? | | ?????????????????????????????????????????????????? | | ?????????????????????????????????????????????????? | | ?????????????????????????????????????????????????? | | ?????????????????????????????????????????????????? | | ?????????????????????????????????????????????????? | | ?????????????????????????????????????????????????? | | ?????????????????????????????????????????????????? | | ?????????????????????????????????????????????????? | | ?????????????????????????????????????????????????? | | ?????????????????????????????????????????????????? | | ?????????????????????????????????????????????????? | | ?????????????????????????????????????????????????? | +----------------------------------------------------+ Best States ------------- Heat Dissipation 102 Coolant Potential 100 Energy Generation 75 Energy Capacity 1500 Matter Stores 600 Matter Capacity 600 Sight Range 22 Robot Scan Range 30 Terrain Scan Density 10 Jamming Range 22 Cloak Strength 3 Power Amplification 40 Additional Mass Support 9 EM Shielding 2 Armor Coverage 1200 Resistance: KI 30 Resistance: TH 15 Resistance: EM 90 Weapon Cycling 20 Evasion (%) 69 Targeting Accuracy 6 Melee Accuracy 8 Target Analysis 8 Armor Integrity Analysis 50 Recoil Reduction 3 Particle Charging 40 Kinecelleration 40 Offensive Hacking 50 Defensive Hacking 26 Item Schematics ----------------- Hcp. Storage Unit | -10/Materials | Hacked Lrg. Storage Unit | -10/Materials | Hacked Cmb. Airjet | -9/Materials | Scanalyzed Hacking Suite | -8/Materials | Scanalyzed Exp. Sensor Array | -7/Factory | Scanalyzed Combat Drone Bay | -7/Data Miner | Free Lgt. Regenerative Plating | -7/Data Miner | Free Triangulator | -7/Data Miner | Free Tactical Coordination Suite | -7/Data Miner | Free Cloaking Device | -7/Data Miner | Free Plasma Sword | -7/Data Miner | Free Kinetic Spear | -7/Data Miner | Free Imp. Hacking Suite | -6/Extension | Hacked Powered Armor | -6/Extension | Hacked Mic. Nuclear Core | -6/Extension | Hacked Energy Well | -6/Extension | Hacked Remote Shield | -6/Extension | Hacked Adv. Weight Redist. System | -6/Extension | Hacked Neutron Missile Launcher | -5/Factory | Scanalyzed Quantum Reactor | -5/Factory | Scanalyzed Mic. Fission Core | -5/Factory | Scanalyzed Imp. Weapon Cycler | -5/Factory | Scanalyzed Adv. Datajack | -5/Factory | Scanalyzed Cmb. Linear Gravjet | -4/Factory | Scanalyzed Vortex Chain Reactor | -3/Research | Scanalyzed Adv. Energy Well | -3/Research | Scanalyzed Adv. Force Field | -3/Research | Scanalyzed Imp. Fusion Compressor | -3/Research | Scanalyzed Adv. Weapon Cycler | -3/Research | Scanalyzed KE Penetrator | -3/Research | Scanalyzed Robot Schematics ------------------ S-27 Virus | -7/Data Miner | Free G-50 Soldier | -7/Data Miner | Free I-36 Angel | -7/Data Miner | Free Fabricated ------------ Cmb. Airjet | x2 | -7/Factory Combat Drone Bay | x1 | -6/Factory Cmb. Airjet | x2 | -6/Factory Combat Drone Bay | x1 | -6/Factory Combat Drone Bay | x1 | -6/Factory Cmb. Airjet | x2 | -5/Factory Cmb. Airjet | x2 | -5/Factory Cmb. Airjet | x2 | -5/Factory Exp. Sensor Array | x1 | -5/Factory Exp. Sensor Array | x1 | -5/Factory Combat Drone Bay | x1 | -5/Factory Combat Drone Bay | x1 | -5/Factory Combat Drone Bay | x1 | -4/Factory Combat Drone Bay | x1 | -4/Factory Cmb. Linear Gravjet | x2 | -4/Factory Cmb. Linear Gravjet | x2 | -4/Factory Tactical Coordination Suite | x1 | -4/Factory Remote Shield | x2 | -4/Factory Exp. Sensor Array | x1 | -4/Factory Vortex Chain Reactor | x1 | -2/Research Vortex Chain Reactor | x1 | -1/Access Alien Tech Used ----------------- None Achievements -------------- Revolutionary Research Challenges ------------ None Game ------ Seed AbsorptionImprovedRegulator Manual? 0 Play Time 07:55:00 Cumulative 239.5 hours Start 2020.10.26 @ 21:35:18 End 2020.10.28 @ 18:15:00 Sessions 13 Manual Loads 0 Difficulty Rogue Special Mode None Game No. 98 Rogue 98 Adventurer 0 Explorer 0 Win Type 0 Total 6 Types 4/0/1/1/0/0/0/0/0 Lore% 52 Gallery% 83 Achievement% 63 Wizard Run 0 Options --------- ASCII 0 Keyboard 0 Movement Numpad Keybinds 0 Fullscreen 1 Font 18/SmallcapsGlow Map View 76x50 Tactical HUD 1 Map Filters NONE Filters NONE Steam 1 RUN: 2f4f895b-a446-424c-91d3-0f27c0ea87df